[Event "11th LCC FIDE Open 2019"]
[Site "London"]
[Date "2019.12.05"]
[Round "9.49"]
[White "Jukes, Sam"]
[Black "Chakanyuka, Charles"]
[Result "1-0"]
[ECO "B06"]
[WhiteElo "1899"]
[BlackElo "1995"]
[Annotator "NA RC"]
[PlyCount "139"]
[EventDate "2019.11.29"]
[EventType "swiss"]
[EventCountry "ENG"]
[SourceTitle "playchess.com"]
[Source "ChessBase"]
[SourceQuality "1"]
[TimeControl "40/5400+30:1800+30"]

1. e4 {[%emt 0:00:00]} g6 {[%emt 0:04:51]} 2. d4 {[%emt 0:00:00]} d6 {[%emt 0:00:03]} 3. Nc3 {[%emt 0:00:00]} Bg7 {[%emt 0:00:04]} 4. f4 {[%emt 0:01:34]} e6 {[%emt 0:00:24]} 5. Nf3 {[%emt 0:00:38]} Ne7 {[%emt 0:00:20]} 6. Be2 {[%emt 0:02:52]} c6 {[%emt 0:00:05]} 7. O-O {[%emt 0:01:27]} O-O {[%emt 0:00:16]} 8. h4 {[%emt 0:05:02]} d5 {[%emt 0:02:57]} 9. e5 {[%emt 0:06:26]} Nf5 {[%emt 0:00:15]} 10. Bd3 {[%emt 0:06:28]} Nxh4 {[%emt 0:01:34]} 11. Nxh4 {[%emt 0:00:51]} Qxh4 {[%emt 0:00:07]} 12. Rf3 {[%emt 0:01:08]} f5 {[%emt 0:00:12]} 13. Rh3 {[%emt 0:00:57]} Qe7 {[%emt 0:00:06]} 14. Be3 {[%emt 0:02:26]} Nd7 {[%emt 0:01:03]} 15. Qf3 {[%emt 0:02:14]} Rf7 {[%emt 0:03:44]} 16. Ne2 {[%emt 0:02:31]} c5 {[%emt 0:00:16]} 17. c3 {[%emt 0:00:31]} b6 {[%emt 0:01:19]} 18. a3 {[%emt 0:05:58]} Bb7 {[%emt 0:01:37]} 19. Bf2 {[%emt 0:07:41]} Rc8 {[%emt 0:01:26]} 20. Bh4 {[%emt 0:01:20]} Qe8 {[%emt 0:00:54]} 21. Kf2 {[%emt 0:01:04]} Nf8 {[%emt 0:01:18]} 22. Qe3 {[%emt 0:15:35]} Qa4 {[%emt 0:02:43]} 23. Rah1 {[%emt 0:00:48]} Ba6 {[%emt 0:00:19]} 24. Kf3 {[%emt 0:07:49]} Bxd3 {[%emt 0:02:11]} 25. Qxd3 {[%emt 0:00:04]} Qb3 {[%emt 0:01:03]} 26. Qd2 {[%emt 0:02:01]} Nd7 {[%emt 0:09:38]} 27. Bf2 {[%emt 0:02:29]} Nf8 {[%emt 0:02:05]} 28. Ng1 {[%emt 0:03:27]} Bh8 {[%emt 0:00:59]} 29. Ke2 {[%emt 0:03:18]} Qc4+ {[%emt 0:04:11]} 30. Ke1 {[%emt 0:01:16]} Qa2 {[%emt 0:00:34]} 31. Nf3 {[%emt 0:00:49]} Rcc7 {[%emt 0:08:12]} 32. Rh4 {[%emt 0:02:57]} Rfe7 {[%emt 0:00:40]} 33. R1h3 {[%emt 0:02:52]} a6 {[%emt 0:00:32]} 34. Be3 {[%emt 0:01:03]} Qb1+ {[%emt 0:02:49]} 35. Kf2 {[%emt 0:00:15]} Qa2 {[%emt 0:06:11]} 36. Ng5 {[%emt 0:01:42]} Qb3 {[%emt 0:00:22]} 37. Kg1 {[%emt 0:00:19]} Qb5 {[%emt 0:00:44]} 38. Qf2 {[%emt 0:02:23]} h5 {[%emt 0:11:21]} 39. Kh2 {[%emt 0:05:30]} Bg7 {[%emt 0:01:41]} 40. a4 {[%emt 0:01:48]} Qc6 {[%emt 0:00:38]} 41. Rg3 {[%emt 0:06:47]} c4 {[%emt 0:00:19]} 42. Qc2 {[%emt 0:02:53]} b5 {[%emt 0:01:35]} 43. axb5 {[%emt 0:00:28]} Qxb5 {[%emt 0:00:24]} 44. Rhh3 {[%emt 0:00:15]} Rb7 {[%emt 0:00:13]} 45. Bc1 {[%emt 0:00:13]} Qe8 {[%emt 0:03:51]} 46. Nf3 {[%emt 0:00:47]} Rec7 {[%emt 0:06:52]} 47. Qd1 {[%emt 0:00:45]} a5 {[%emt 0:02:48]} 48. Nh4 {[%emt 0:00:29]} Qf7 {[%emt 0:22:23]} 49. Nxg6 {[%emt 0:03:05]} Nxg6 {[%emt 0:00:47]} 50. Qxh5 {[%emt 0:00:00]} Kf8 {[%emt 0:01:32]} 51. Rxg6 {[%emt 0:00:18]} Ke8 {[%emt 0:00:44]} 52. Rxe6+ {[%emt 0:00:33]} Re7 {[%emt 0:02:35]} 53. Rg6 {[%emt 0:01:23]} Kd8 {[%emt 0:00:59]} 54. Qg5 {[%emt 0:01:47]} Qf8 {[%emt 0:01:27]} 55. Rh7 {[%emt 0:02:46]} Kc8 {[%emt 0:00:33]} 56. Qh5 {[%emt 0:02:40]} Kb8 {[%emt 0:01:09]} 57. Kg1 {[%emt 0:01:57]} Rf7 {[%emt 0:01:10]} 58. Qg5 {[%emt 0:01:10]} a4 {[%emt 0:02:42]} 59. Rd6 {[%emt 0:00:45]} Rfd7 {[%emt 0:01:36]} 60. Rxd7 {[%emt 0:00:47]} Rxd7 {[%emt 0:00:04]} 61. Rh5 {[%emt 0:00:28]} Rf7 {[%emt 0:00:20]} 62. Qg6 {[%emt 0:00:13]} Qe7 {[%emt 0:03:30]} 63. Qb6+ {[%emt 0:01:10]} Qb7 {[%emt 0:00:36]} 64. Qd8+ {[%emt 0:00:59]} Ka7 {[%emt 0:00:26]} 65. Qa5+ {[%emt 0:00:08]} Kb8 {[%emt 0:00:44]} 66. Qxa4 {[%emt 0:00:15]} Rf8 {[%emt 0:05:15]} 67. Rg5 {[%emt 0:00:56]} Rf7 {[%emt 0:01:33]} 68. Rg6 {[%emt 0:00:40]} Rd7 {[%emt 0:07:20]} 69. Qa5 {[%emt 0:00:39]} Kc8 {[%emt 0:00:46]} 70. Rb6 {[%emt 0:00:50]} 1-0

[Event "11th LCC FIDE Open 2019"]
[Site "London"]
[Date "2019.12.05"]
[Round "9.50"]
[White "Penna, Tommaso"]
[Black "Kuzhelev, Timur"]
[Result "1/2-1/2"]
[ECO "C40"]
[WhiteElo "2007"]
[BlackElo "1745"]
[Annotator "NA"]
[PlyCount "75"]
[EventDate "2019.11.29"]
[EventType "swiss"]
[EventCountry "ENG"]
[SourceTitle "playchess.com"]
[Source "ChessBase"]
[SourceQuality "1"]
[TimeControl "40/5400+30:1800+30"]

1. e4 {[%emt 1:29:16]} e5 {[%emt 0:00:15]} 2. Nf3 {[%emt 0:00:05]} d5 {[%emt 0:00:17]} 3. exd5 {[%emt 0:00:06]} e4 {[%emt 0:00:03]} 4. Qe2 {[%emt 0:00:07]} Nf6 {[%emt 0:00:03]} 5. d3 {[%emt 0:00:09]} Qxd5 {[%emt 0:00:04]} 6. Nc3 {[%emt 0:06:39]} Bb4 {[%emt 0:00:05]} 7. Bd2 {[%emt 0:00:07]} Bxc3 {[%emt 0:00:05]} 8. Bxc3 {[%emt 0:00:28]} O-O {[%emt 0:00:05]} 9. dxe4 {[%emt 0:05:49]} Nxe4 {[%emt 0:00:32]} 10. Rd1 {[%emt 0:09:01]} Nxc3 {[%emt 0:00:09]} 11. Rxd5 {[%emt 0:00:21]} Nxe2 {[%emt 0:00:04]} 12. Bxe2 {[%emt 0:00:12]} Be6 {[%emt 0:00:13]} 13. Rb5 {[%emt 0:09:02]} b6 {[%emt 0:00:12]} 14. Nd4 {[%emt 0:03:24]} Bd7 {[%emt 0:00:47]} 15. Bf3 {[%emt 0:03:22]} Re8+ {[%emt 0:02:25]} 16. Kd2 {[%emt 0:01:35]} Bxb5 {[%emt 0:01:39]} 17. Nxb5 {[%emt 0:05:07]} Na6 {[%emt 0:00:49]} 18. Bxa8 {[%emt 0:00:53]} Rxa8 {[%emt 0:00:09]} 19. Re1 {[%emt 0:03:11]} Kf8 {[%emt 0:00:08]} 20. Re3 {[%emt 0:02:46]} c6 {[%emt 0:00:21]} 21. Ra3 {[%emt 0:09:54]} cxb5 {[%emt 0:02:21]} 22. Rxa6 {[%emt 0:00:09]} b4 {[%emt 0:02:16]} 23. a3 {[%emt 0:08:07]} Rd8+ {[%emt 0:00:55]} 24. Ke2 {[%emt 0:07:00]} bxa3 {[%emt 0:00:09]} 25. Rxa3 {[%emt 0:03:54]} a5 {[%emt 0:00:14]} 26. Rc3 {[%emt 0:00:38]} Rd6 {[%emt 0:00:17]} 27. Rc7 {[%emt 0:00:14]} g5 {[%emt 0:00:19]} 28. c4 {[%emt 0:03:08]} h6 {[%emt 0:01:57]} 29. b3 {[%emt 0:01:46]} Kg7 {[%emt 0:01:31]} 30. Rb7 {[%emt 0:02:04]} Kg6 {[%emt 0:01:21]} 31. Ke3 {[%emt 0:00:49]} f6 {[%emt 0:00:08]} 32. Ke4 {[%emt 0:01:33]} h5 {[%emt 0:01:44]} 33. f4 {[%emt 0:03:36]} gxf4 {[%emt 0:01:17]} 34. Kxf4 {[%emt 0:00:23]} a4 {[%emt 0:02:00]} 35. bxa4 {[%emt 0:04:41]} Rd4+ {[%emt 0:00:03]} 36. Ke3 {[%emt 0:00:08]} Rxc4 {[%emt 0:00:03]} 37. Rxb6 {[%emt 0:00:06]} Rxa4 {[%emt 0:00:56] Kd4} 38. Kf3 1/2-1/2

[Event "11th LCC FIDE Open 2019"]
[Site "London"]
[Date "2019.12.05"]
[Round "9.51"]
[White "De Coverly, Roger D"]
[Black "Thatte, Nishchal"]
[Result "0-1"]
[ECO "C01"]
[WhiteElo "1986"]
[BlackElo "1723"]
[Annotator "NA"]
[PlyCount "44"]
[EventDate "2019.11.29"]
[EventType "swiss"]
[EventCountry "ENG"]
[SourceTitle "playchess.com"]
[Source "ChessBase"]
[SourceQuality "1"]
[TimeControl "40/5400+30:1800+30"]

1. e4 {[%emt 0:01:02]} e6 {[%emt 0:00:09]} 2. d4 {[%emt 0:00:05]} d5 {[%emt 0:00:06]} 3. exd5 {[%emt 0:00:05]} exd5 {[%emt 0:00:14]} 4. c4 {[%emt 0:00:04]} Bb4+ {[%emt 0:00:43]} 5. Nc3 {[%emt 0:00:38]} Nf6 {[%emt 0:00:27]} 6. Nf3 {[%emt 0:00:33]} O-O {[%emt 0:00:52]} 7. Be2 {[%emt 0:00:41]} dxc4 {[%emt 0:06:28]} 8. Bxc4 {[%emt 0:00:19]} Re8+ {[%emt 0:01:16]} 9. Be3 {[%emt 0:02:00]} Bg4 {[%emt 0:03:01]} 10. O-O {[%emt 0:03:28]} Nc6 {[%emt 0:02:19]} 11. Qb3 {[%emt 0:04:02]} Bxf3 {[%emt 0:07:23]} 12. Bxf7+ {[%emt 0:00:33]} Kh8 {[%emt 0:00:22]} 13. Bxe8 {[%emt 0:01:29]} Qxe8 {[%emt 0:00:25]} 14. gxf3 {[%emt 0:01:07]} Qg6+ {[%emt 0:01:20]} 15. Kh1 {[%emt 0:00:55]} Qh5 {[%emt 0:01:33]} 16. Rg1 {[%emt 0:02:15]} Bd6 {[%emt 0:02:33]} 17. Rg2 {[%emt 0:01:14]} Qxf3 {[%emt 0:05:56]} 18. Qf7 {[%emt 0:04:25]} Rg8 {[%emt 0:01:56]} 19. Re1 {[%emt 0:04:40]} Bxh2 {[%emt 0:04:06]} 20. Nd5 {[%emt 0:04:43]} Nd8 {[%emt 0:01:30]} 21. Qe7 {[%emt 0:13:57]} Bd6 {[%emt 0:01:07]} 22. Nxf6 {[%emt 0:03:47]} gxf6 {[%emt 0:01:46]} 0-1

[Event "11th LCC FIDE Open 2019"]
[Site "London"]
[Date "2019.12.05"]
[Round "9.52"]
[White "Siddharth, Gopakumar"]
[Black "Karumazondo, Ragarirai Ernest"]
[Result "0-1"]
[ECO "B33"]
[WhiteElo "1848"]
[BlackElo "1972"]
[Annotator "NA"]
[PlyCount "76"]
[EventDate "2019.11.29"]
[EventType "swiss"]
[EventCountry "ENG"]
[SourceTitle "playchess.com"]
[Source "ChessBase"]
[SourceQuality "1"]
[TimeControl "40/5400+30:1800+30"]

1. e4 {[%emt 0:00:00]} c5 {[%emt 0:06:27]} 2. Nf3 {[%emt 0:00:00]} Nc6 {[%emt 0:00:06]} 3. d4 {[%emt 0:00:00]} cxd4 {[%emt 0:00:10]} 4. Nxd4 {[%emt 0:00:01]} Nf6 {[%emt 0:00:04]} 5. Nc3 {[%emt 0:00:05]} e5 {[%emt 0:00:06]} 6. Ndb5 {[%emt 0:00:03]} d6 {[%emt 0:00:05]} 7. Na3 {[%emt 0:00:05]} a6 {[%emt 0:01:57]} 8. Bg5 {[%emt 0:00:25]} b5 {[%emt 0:02:02]} 9. Bxf6 {[%emt 0:02:21]} gxf6 {[%emt 0:00:08]} 10. Nd5 {[%emt 0:00:02]} f5 {[%emt 0:00:13]} 11. Bd3 {[%emt 0:00:04]} Be6 {[%emt 0:00:19]} 12. c3 {[%emt 0:01:01]} Bxd5 {[%emt 0:00:45]} 13. exd5 {[%emt 0:00:09]} Ne7 {[%emt 0:00:09]} 14. O-O {[%emt 0:00:43]} Bg7 {[%emt 0:01:33]} 15. c4 {[%emt 0:00:10]} e4 {[%emt 0:00:53]} 16. Be2 {[%emt 0:02:37]} Bxb2 {[%emt 0:01:46]} 17. Rb1 {[%emt 0:00:03]} Bxa3 {[%emt 0:00:50]} 18. Qd4 {[%emt 0:00:39]} O-O {[%emt 0:00:54]} 19. Rb3 {[%emt 0:00:38]} Bc5 {[%emt 0:00:38]} 20. Qf6 {[%emt 0:00:13]} Ng6 {[%emt 0:09:06]} 21. Qxf5 {[%emt 0:00:06]} bxc4 {[%emt 0:00:27]} 22. Rh3 {[%emt 0:00:32]} Qe7 {[%emt 0:07:34]} 23. Bxc4 {[%emt 0:01:24]} Qe5 {[%emt 0:00:44]} 24. Qg4 {[%emt 0:00:09]} f5 {[%emt 0:01:22]} 25. Qh5 {[%emt 0:01:41]} Rf7 {[%emt 0:01:20]} 26. Rb1 {[%emt 0:02:35]} Rg7 {[%emt 0:02:54]} 27. Rg3 {[%emt 0:03:36]} Bxf2+ {[%emt 0:00:46]} 28. Kxf2 {[%emt 0:00:33]} Qd4+ {[%emt 0:00:10]} 29. Ke1 {[%emt 0:00:11]} f4 {[%emt 0:03:25]} 30. Rgb3 {[%emt 0:01:02]} Qxc4 {[%emt 0:01:16]} 31. Rb8+ {[%emt 0:00:10]} Rxb8 {[%emt 0:01:04]} 32. Rxb8+ {[%emt 0:00:04]} Nf8 {[%emt 0:00:09]} 33. Qh3 {[%emt 0:02:06]} Qc1+ {[%emt 0:01:00]} 34. Ke2 {[%emt 0:00:11]} Qc2+ {[%emt 0:00:49]} 35. Ke1 {[%emt 0:00:01]} f3 {[%emt 0:01:03]} 36. Qe6+ {[%emt 0:02:15]} Rf7 {[%emt 0:00:41]} 37. Rxf8+ {[%emt 0:03:09]} Kxf8 {[%emt 0:00:14]} 38. Qh6+ {[%emt 0:01:05]} Ke8 {[%emt 0:00:54]} 0-1

[Event "11th LCC FIDE Open 2019"]
[Site "London"]
[Date "2019.12.05"]
[Round "9.53"]
[White "Ahn, Sungmin"]
[Black "Ditmas, Hugh"]
[Result "1-0"]
[ECO "B30"]
[WhiteElo "1780"]
[BlackElo "1961"]
[Annotator "NA RC"]
[PlyCount "99"]
[EventDate "2019.11.29"]
[EventType "swiss"]
[EventCountry "ENG"]
[SourceTitle "playchess.com"]
[Source "ChessBase"]
[SourceQuality "1"]
[TimeControl "40/5400+30:1800+30"]

1. e4 {[%emt 0:00:00]} c5 {[%emt 0:00:00]} 2. Nf3 {[%emt 0:00:00]} Nc6 {[%emt 0:00:00]} 3. Bb5 {[%emt 0:00:00]} e6 {[%emt 0:00:05]} 4. Bxc6 {[%emt 0:00:02]} bxc6 {[%emt 0:00:09]} 5. d3 {[%emt 0:00:18]} Ne7 {[%emt 0:00:15]} 6. Qe2 {[%emt 0:00:05]} Ng6 {[%emt 0:00:34]} 7. h4 {[%emt 0:00:25]} h5 {[%emt 0:00:46]} 8. e5 {[%emt 0:00:12]} Be7 {[%emt 0:00:58]} 9. Qe4 {[%emt 0:03:15]} Rb8 {[%emt 0:11:40]} 10. a3 {[%emt 0:02:17]} Qa5+ {[%emt 0:04:11]} 11. Bd2 {[%emt 0:02:38]} Qb5 {[%emt 0:03:26]} 12. Bc3 {[%emt 0:03:00]} Ba6 {[%emt 0:03:45]} 13. Nbd2 {[%emt 0:00:48]} Qb6 {[%emt 0:00:42]} 14. b3 {[%emt 0:03:46]} Bf8 {[%emt 0:08:17]} 15. Ng5 {[%emt 0:03:11]} Ne7 {[%emt 0:00:29]} 16. Qf4 {[%emt 0:04:59]} Nf5 {[%emt 0:01:15]} 17. f3 {[%emt 0:01:21]} d5 {[%emt 0:06:51]} 18. Nxf7 {[%emt 0:09:10]} Kxf7 {[%emt 0:07:27]} 19. g4 {[%emt 0:02:44]} g6 {[%emt 0:00:29]} 20. gxf5 {[%emt 0:00:43]} gxf5 {[%emt 0:00:23]} 21. Rg1 {[%emt 0:02:09]} Bh6 {[%emt 0:00:59]} 22. Qh2 {[%emt 0:01:34]} Rhg8 {[%emt 0:09:20]} 23. O-O-O {[%emt 0:01:58]} Be3 {[%emt 0:09:40]} 24. Rxg8 {[%emt 0:02:12]} Rxg8 {[%emt 0:00:21]} 25. Re1 {[%emt 0:00:38]} f4 {[%emt 0:08:33]} 26. Kd1 {[%emt 0:01:22]} Qd8 {[%emt 0:05:23]} 27. Nf1 {[%emt 0:06:48]} d4 {[%emt 0:00:13]} 28. Nxe3 {[%emt 0:09:37]} fxe3 {[%emt 0:00:19]} 29. Bb2 {[%emt 0:00:40]} Qa5 {[%emt 0:03:15]} 30. Re2 {[%emt 0:07:41]} Qd8 {[%emt 0:01:54]} 31. b4 {[%emt 0:15:23]} c4 {[%emt 0:02:46]} 32. Qf4+ {[%emt 0:00:45]} Ke8 {[%emt 0:00:14]} 33. Bxd4 {[%emt 0:02:04]} cxd3 {[%emt 0:02:49]} 34. cxd3 {[%emt 0:01:08]} Qd5 {[%emt 0:01:28]} 35. Qxe3 {[%emt 0:02:26]} Qb3+ {[%emt 0:01:53]} 36. Kd2 {[%emt 0:02:09]} Qxa3 {[%emt 0:00:58]} 37. Bc5 {[%emt 0:08:54]} Qb2+ {[%emt 0:01:19]} 38. Kd1 {[%emt 0:00:41]} Qb1+ {[%emt 0:00:56]} 39. Kd2 {[%emt 0:01:09]} Rg1 {[%emt 0:00:18]} 40. Qxg1 {[%emt 0:00:53]} Qxd3+ {[%emt 0:00:06]} 41. Kc1 {[%emt 0:03:27]} Qa3+ {[%emt 0:33:02]} 42. Rb2 {[%emt 0:27:43]} Qc3+ {[%emt 0:00:00]} 43. Rc2 {[%emt 0:00:00]} Qa3+ {[%emt 0:00:00]} 44. Kd2 {[%emt 0:00:00]} Qd3+ {[%emt 0:00:00]} 45. Ke1 {[%emt 0:00:00]} Kf7 {[%emt 0:00:00]} 46. Rd2 {[%emt 0:00:00]} Qc3 {[%emt 0:00:00]} 47. Qe3 {[%emt 0:00:00]} Qc4 {[%emt 0:00:00]} 48. Rd7+ {[%emt 0:00:00]} Ke8 {[%emt 0:00:00]} 49. Re7+ {[%emt 0:00:00]} Kd8 {[%emt 0:00:00]} 50. Qd2+ {[%emt 0:00:00] Ke8} 1-0

[Event "11th LCC FIDE Open 2019"]
[Site "London"]
[Date "2019.12.05"]
[Round "9.54"]
[White "AuYeung, Chi Hung Jonathan"]
[Black "Korning, Peter"]
[Result "0-1"]
[ECO "D30"]
[WhiteElo "1770"]
[BlackElo "1957"]
[Annotator "NA RC"]
[PlyCount "124"]
[EventDate "2019.11.29"]
[EventType "swiss"]
[EventCountry "ENG"]
[SourceTitle "playchess.com"]
[Source "ChessBase"]
[SourceQuality "1"]
[TimeControl "40/5400+30:1800+30"]

1. c4 {[%emt 0:00:00]} e6 {[%emt 0:00:00]} 2. Nf3 {[%emt 0:00:00]} d5 {[%emt 0:00:00]} 3. g3 {[%emt 0:00:06]} c5 {[%emt 0:00:00]} 4. Bg2 {[%emt 0:00:37]} Nc6 {[%emt 0:00:16]} 5. O-O {[%emt 0:00:15]} Nf6 {[%emt 0:00:46]} 6. cxd5 {[%emt 0:00:38]} exd5 {[%emt 0:00:23]} 7. d4 {[%emt 0:00:09]} Be7 {[%emt 0:00:27]} 8. dxc5 {[%emt 0:00:42]} Bxc5 {[%emt 0:00:10]} 9. a3 {[%emt 0:00:04]} Ne4 {[%emt 0:00:38]} 10. Nfd2 {[%emt 0:01:50]} f5 {[%emt 0:08:39]} 11. Nc3 {[%emt 0:06:12]} Be6 {[%emt 0:16:56]} 12. Qb3 {[%emt 0:09:49]} Nd4 {[%emt 0:09:22]} 13. Qxb7 {[%emt 0:06:19]} O-O {[%emt 0:01:44]} 14. Ndxe4 {[%emt 0:11:00]} fxe4 {[%emt 0:04:56]} 15. Be3 {[%emt 0:06:50]} Rb8 {[%emt 0:16:47]} 16. Qa6 {[%emt 0:01:16]} Bg4 {[%emt 0:07:58]} 17. b4 {[%emt 0:20:38]} Rf6 {[%emt 0:05:41]} 18. Qa4 {[%emt 0:03:10]} Nxe2+ {[%emt 0:00:17]} 19. Nxe2 {[%emt 0:00:15]} Bxe3 {[%emt 0:00:10]} 20. fxe3 {[%emt 0:01:38]} Bxe2 {[%emt 0:00:23]} 21. Rfe1 {[%emt 0:02:01]} Bb5 {[%emt 0:04:10]} 22. Qxa7 {[%emt 0:02:14]} Rfb6 {[%emt 0:02:27]} 23. Rec1 {[%emt 0:06:59]} R8b7 {[%emt 0:06:50]} 24. Qa5 {[%emt 0:00:16]} Qb8 {[%emt 0:05:44]} 25. Bh3 {[%emt 0:01:21]} Ra7 {[%emt 0:05:02]} 26. Rc8+ {[%emt 0:00:44]} Qxc8 {[%emt 0:00:02]} 27. Qxb6 {[%emt 0:02:47]} Rb7 {[%emt 0:02:13]} 28. Qe6+ {[%emt 0:00:42]} Qxe6 {[%emt 0:00:10]} 29. Bxe6+ {[%emt 0:00:02]} Kf8 {[%emt 0:00:27]} 30. Bxd5 {[%emt 0:00:18]} Re7 {[%emt 0:00:18]} 31. a4 {[%emt 0:03:09]} Bd3 {[%emt 0:01:06]} 32. b5 {[%emt 0:01:21]} Re5 {[%emt 0:00:08]} 33. b6 {[%emt 0:02:34]} Rxd5 {[%emt 0:00:30]} 34. b7 {[%emt 0:00:06]} Rd8 {[%emt 0:00:20]} 35. Rc1 {[%emt 0:00:07]} Ba6 {[%emt 0:00:10]} 36. Rc8 {[%emt 0:00:16]} Rxc8 {[%emt 0:00:04]} 37. bxc8=Q+ {[%emt 0:00:23]} Bxc8 {[%emt 0:00:02]} 38. Kf2 {[%emt 0:00:08]} Ke7 {[%emt 0:00:06]} 39. Ke2 {[%emt 0:00:06]} Kd6 {[%emt 0:00:03]} 40. Kd2 {[%emt 0:00:03]} Kc5 {[%emt 0:00:13]} 41. Kc3 {[%emt 0:30:02]} Ba6 {[%emt 0:30:34]} 42. h3 {[%emt 0:00:27]} Bf1 {[%emt 0:00:24]} 43. h4 {[%emt 0:00:03]} h5 {[%emt 0:00:16]} 44. Kb3 {[%emt 0:00:08]} Bc4+ {[%emt 0:00:23]} 45. Kc3 {[%emt 0:00:05]} Be2 {[%emt 0:00:28]} 46. a5 {[%emt 0:01:14]} Bd3 {[%emt 0:00:23]} 47. Kb3 {[%emt 0:00:10]} Kb5 {[%emt 0:00:19]} 48. Kc3 {[%emt 0:00:01]} Kxa5 {[%emt 0:00:12]} 49. Kd4 {[%emt 0:00:01]} Kb4 {[%emt 0:00:14]} 50. Ke5 {[%emt 0:00:04]} Kc3 {[%emt 0:00:12]} 51. Kf5 {[%emt 0:00:24]} Kd2 {[%emt 0:00:21]} 52. Kg6 {[%emt 0:00:03]} Kxe3 {[%emt 0:00:16]} 53. Kxh5 {[%emt 0:00:24]} Kf2 {[%emt 0:00:13]} 54. g4 {[%emt 0:00:39]} Kg3 {[%emt 0:00:45]} 55. Kg5 {[%emt 0:01:06]} e3 {[%emt 0:00:43]} 56. h5 {[%emt 0:00:14]} e2 {[%emt 0:00:31]} 57. h6 {[%emt 0:00:09]} gxh6+ {[%emt 0:00:07]} 58. Kh5 {[%emt 0:00:07]} e1=Q {[%emt 0:00:34]} 59. Kxh6 {[%emt 0:00:19]} Qe6+ {[%emt 0:00:28]} 60. Kg7 {[%emt 0:00:05]} Qe7+ {[%emt 0:00:33]} 61. Kh6 {[%emt 0:00:07]} Qf6+ {[%emt 0:00:15]} 62. Kh5 Qg6# {[%emt 0:00:18]} 0-1

[Event "11th LCC FIDE Open 2019"]
[Site "London"]
[Date "2019.12.05"]
[Round "9.55"]
[White "Gaier, Walter"]
[Black "Chapman, Matt"]
[Result "1/2-1/2"]
[ECO "C44"]
[WhiteElo "1750"]
[BlackElo "1937"]
[Annotator "NA"]
[PlyCount "71"]
[EventDate "2019.11.29"]
[EventType "swiss"]
[EventCountry "ENG"]
[SourceTitle "playchess.com"]
[Source "ChessBase"]
[SourceQuality "1"]
[TimeControl "40/5400+30:1800+30"]

1. e4 {[%emt 0:08:42]} e5 {[%emt 0:00:12]} 2. Nf3 {[%emt 0:00:09]} Nc6 {[%emt 0:00:06]} 3. c3 {[%emt 0:00:14]} d5 {[%emt 0:03:50]} 4. Qa4 {[%emt 0:00:06]} Bd7 {[%emt 0:13:27]} 5. exd5 {[%emt 0:04:14]} Nd4 {[%emt 0:00:58]} 6. Qd1 {[%emt 0:00:48]} Nxf3+ {[%emt 0:00:14]} 7. Qxf3 {[%emt 0:00:28]} Nf6 {[%emt 0:00:10]} 8. Bc4 {[%emt 0:07:48]} b5 {[%emt 0:07:26]} 9. Bb3 {[%emt 0:07:31]} e4 {[%emt 0:06:10]} 10. Qe2 {[%emt 0:02:44]} Bd6 {[%emt 0:02:15]} 11. d4 {[%emt 0:01:46]} h6 {[%emt 0:03:25]} 12. h3 {[%emt 0:01:35]} O-O {[%emt 0:00:27]} 13. Be3 {[%emt 0:10:00]} Qc8 {[%emt 0:04:17]} 14. Nd2 {[%emt 0:01:11]} Qb7 {[%emt 0:02:06]} 15. O-O-O {[%emt 0:14:33]} a5 {[%emt 0:04:13]} 16. g4 {[%emt 0:02:05]} a4 {[%emt 0:02:59]} 17. Bc2 {[%emt 0:07:52]} Qxd5 {[%emt 0:01:20]} 18. Bb1 {[%emt 0:07:27]} Rfe8 {[%emt 0:05:49]} 19. Rdg1 {[%emt 0:02:39]} a3 {[%emt 0:03:12]} 20. b3 {[%emt 0:06:36]} Qc6 {[%emt 0:01:39]} 21. g5 {[%emt 0:06:30]} Qxc3+ {[%emt 0:02:35]} 22. Kd1 {[%emt 0:00:19]} hxg5 {[%emt 0:02:15]} 23. Rxg5 {[%emt 0:01:30]} Bb4 {[%emt 0:04:12]} 24. Rhg1 {[%emt 0:02:36]} g6 {[%emt 0:02:25]} 25. h4 {[%emt 0:04:39]} Qb2 {[%emt 0:01:43]} 26. Rxg6+ {[%emt 0:04:42]} fxg6 {[%emt 0:00:45]} 27. Rxg6+ {[%emt 0:00:02]} Kf7 {[%emt 0:00:51]} 28. Rxf6+ {[%emt 0:00:47]} Kxf6 {[%emt 0:03:47]} 29. Qh5 {[%emt 0:00:33]} Bg4+ {[%emt 0:08:49]} 30. Qxg4 {[%emt 0:00:20]} Bxd2 {[%emt 0:00:06]} 31. Qg5+ {[%emt 0:01:05]} Ke6 {[%emt 0:02:30]} 32. Qe5+ {[%emt 0:00:23]} Kd7 {[%emt 0:00:19]} 33. Qd5+ {[%emt 0:00:19]} Ke7 {[%emt 0:00:22]} 34. Qe5+ {[%emt 0:01:36]} Kd7 {[%emt 0:00:10]} 35. Qd5+ {[%emt 0:00:42]} Ke7 {[%emt 0:00:06]} 36. Qe5+ {[%emt 0:00:19]} 1/2-1/2